bitfinex-derivatives/quotes_BTCF0:USTF0_20241223
["timestamp","ask_amount","ask_price","bid_price","bid_amount"]
[1734982577727,0.3608,93230.0,93228.0,0.053703]
[1734982578139,0.3608,93230.0,93229.0,0.005]
[1734982578831,0.3608,93230.0,93228.0,0.053703]
[1734982579028,0.3608,93230.0,93228.0,0.056703]
[1734982579629,0.3618,93230.0,93229.0,0.003]
[1734982579827,0.001,93230.0,93229.0,0.003]
[1734982580332,0.3608,93239.0,93238.0,0.053698]
[1734982581136,0.06844845,93240.0,93238.0,0.414498]
[1734982581434,0.6497539,93250.0,93238.0,0.414498]
[1734982581435,0.0522382,93239.0,93238.0,0.414498]
[1734982581640,0.0522382,93239.0,93238.0,0.46834792]
[1734982582029,0.0522382,93239.0,93238.0,0.47034792]
[1734982582929,0.16000846,93240.0,93238.0,0.47334792]
[1734982583934,0.16000846,93240.0,93238.0,0.47034792]
[1734982584135,0.16000846,93240.0,93238.0,0.47234792]
[1734982584437,0.12799344,93240.0,93239.0,0.053698]
[1734982585741,0.00056001,93260.0,93258.0,0.053687]
[1734982585941,0.077,93279.0,93276.0,0.053676]
[1734982586242,0.077,93279.0,93260.0,0.13573187]
[1734982586634,0.077,93279.0,93270.0,0.3608]
[1734982586830,0.077,93279.0,93277.0,0.053675]
[1734982587743,0.053676,93277.0,93274.0,0.053677]
[1734982587925,0.077,93279.0,93260.0,0.11402148]
[1734982588131,0.077,93279.0,93277.0,0.053676]
[1734982588327,0.135675,93279.0,93277.0,0.054676]
[1734982588942,0.134675,93279.0,93277.0,0.053676]
[1734982589534,0.136675,93279.0,93277.0,0.054676]
[1734982589934,0.083,93279.0,93277.0,0.054676]
[1734982590135,0.08,93279.0,93277.0,0.053676]
[1734982590639,0.3608,93280.0,93279.0,0.053675]
[1734982591144,0.6497539,93300.0,93279.0,0.414475]
[1734982591343,0.41590373,93356.0,93290.0,0.414468]
[1734982591344,0.3608,93344.0,93290.0,0.414468]
[1734982591543,0.490047,93328.0,93319.0,0.3608]
[1734982591739,0.07616001,93328.0,93320.0,0.053651]
[1734982592045,0.0756,93328.0,93320.0,0.053651]
[1734982592249,0.0756,93328.0,93308.0,0.3608]
[1734982592250,0.0756,93328.0,93316.0,0.053653]
[1734982592448,0.37434446,93322.0,93316.0,0.053653]
[1734982592745,0.053651,93321.0,93308.0,0.3608]
[1734982592944,0.131651,93321.0,93320.0,0.001]
[1734982593345,0.131651,93321.0,93308.0,0.3608]
[1734982593952,0.132651,93321.0,93308.0,0.3608]
[1734982594250,0.132651,93321.0,93317.0,0.053653]
[1734982594448,0.132651,93321.0,93317.0,0.053652]
[1734982594647,0.132651,93321.0,93320.0,0.3608]
[1734982594648,0.001,93321.0,93320.0,0.3608]
[1734982595651,0.0756,93328.0,93327.0,0.053647]
[1734982596846,0.0756,93328.0,93327.0,0.05454183]
[1734982597048,0.053647,93327.0,93320.0,0.3608]
[1734982597245,0.05365,93323.0,93320.0,0.3608]
[1734982597549,0.0786,93328.0,93317.0,0.053652]
[1734982597550,0.053651,93321.0,93317.0,0.053652]
[1734982597737,0.0803,93320.0,93319.0,0.053652]
[1734982598753,0.0803,93320.0,93319.0,0.414452]
[1734982599051,0.001,93320.0,93319.0,0.414452]
[1734982599241,0.003,93320.0,93319.0,0.414452]
[1734982599847,0.007,93320.0,93319.0,0.415452]
[1734982600438,0.3608,93358.0,93319.0,0.41496191]
[1734982600639,0.0781,93348.0,93345.0,0.414437]
[1734982601238,0.1598,93359.0,93345.0,0.414437]
[1734982601951,0.00895,93346.0,93345.0,0.415437]
[1734982602852,0.00163333,93346.0,93345.0,0.341437]
[1734982603049,0.0781,93365.0,93364.0,0.053626]
[1734982604052,0.0781,93365.0,93355.0,0.1355842]
[1734982604053,0.0781,93365.0,93362.0,0.053627]
[1734982604355,0.131725,93365.0,93362.0,0.053627]
[1734982604652,0.134725,93365.0,93362.0,0.053627]
[1734982605354,0.0811,93365.0,93364.0,0.053626]
[1734982605546,0.0881,93365.0,93364.0,0.053626]
[1734982605851,0.0871,93365.0,93364.0,0.053626]
[1734982606454,0.0871,93365.0,93355.0,0.55011485]
[1734982606455,0.053626,93364.0,93363.0,0.053626]
[1734982606656,0.0871,93365.0,93364.0,0.053626]
[1734982607446,0.009,93365.0,93364.0,0.414426]
[1734982607648,0.0766,93385.0,93371.0,0.053622]
[1734982607841,0.0766,93385.0,93372.0,0.2868]
[1734982608648,0.0766,93385.0,93384.0,0.053614]
[1734982609844,0.0856,93385.0,93384.0,0.054614]
[1734982610449,0.0886,93385.0,93384.0,0.054614]
[1734982610646,0.142214,93385.0,93384.0,0.001]
[1734982610851,0.053622,93370.0,93366.0,0.053624]
[1734982611057,0.053625,93365.0,93360.0,0.053628]
[1734982611359,0.053625,93365.0,93363.0,0.053626]
[1734982611551,0.0794,93373.0,93353.0,0.41442829]
[1734982611751,0.053621,93372.0,93366.0,0.053624]
[1734982611951,0.053622,93371.0,93366.0,0.053624]
[1734982612257,0.007,93370.0,93366.0,0.054624]
[1734982612458,0.053622,93371.0,93367.0,0.053624]
[1734982612658,0.0794,93373.0,93369.0,0.053623]
[1734982612851,0.053623,93368.0,93363.0,0.054626]
[1734982613061,0.053623,93368.0,93363.0,0.053626]
[1734982613255,0.053623,93368.0,93324.0,0.053648]
[1734982613256,0.053623,93368.0,93366.0,0.001]
[1734982613448,0.23037936,93367.0,93332.0,0.3608]
[1734982613761,0.053649,93324.0,93320.0,0.36044]
[1734982613948,0.053645,93330.0,93320.0,0.36044]
[1734982614149,0.053648,93326.0,93320.0,0.41496442]
[1734982615355,0.053648,93326.0,93320.0,0.42296442]
[1734982615751,0.053648,93326.0,93320.0,0.41796442]
[1734982616054,0.053648,93326.0,93322.0,0.05365]
[1734982616261,0.053648,93326.0,93323.0,0.053649]
[1734982617146,0.3608,93334.0,93323.0,0.053649]
[1734982617147,0.053648,93325.0,93323.0,0.053649]
[1734982617353,0.3608,93334.0,93320.0,0.41596442]
[1734982617551,0.132137,93345.0,93339.0,0.053639]
[1734982617759,0.053637,93344.0,93339.0,0.053639]
[1734982618059,0.0785,93345.0,93331.0,0.3608]
[1734982618247,0.053648,93324.0,93323.0,0.3618]
[1734982618448,0.053648,93324.0,93323.0,0.41463308]
[1734982618749,0.414448,93324.0,93323.0,0.05383308]
[1734982618952,0.053655,93313.0,93311.0,0.3608]
[1734982619551,0.053655,93313.0,93290.0,0.1355842]
[1734982619552,0.053662,93300.0,93296.0,0.053665]
[1734982619957,0.053663,93299.0,93296.0,0.053665]
[1734982620247,0.053665,93295.0,93292.0,0.3608]
[1734982620453,0.053659,93306.0,93292.0,0.3608]
[1734982620666,0.053666,93294.0,93292.0,0.3608]
[1734982621658,0.3608,93307.0,93299.0,0.053663]
[1734982622062,0.05366,93305.0,93292.0,0.3688]
[1734982622359,0.005,93294.0,93292.0,0.3638]
[1734982622859,0.005,93294.0,93293.0,0.053666]
[1734982623853,0.05366,93304.0,93296.0,0.053664]
[1734982624251,0.05366,93304.0,93298.0,0.053663]
[1734982624861,0.1025,93311.0,93302.0,0.053661]
[1734982625062,0.05366,93305.0,93302.0,0.053661]
[1734982625251,0.001,93304.0,93302.0,0.053661]
[1734982626555,0.001,93304.0,93275.0,0.3608]
[1734982626556,0.10717768,93303.0,93275.0,0.3608]
[1734982626752,0.053676,93276.0,93271.0,0.053679]
[1734982626946,0.3608,93281.0,93269.0,0.3608]
[1734982627150,0.053679,93271.0,93269.0,0.3608]
[1734982627547,0.053683,93264.0,93262.0,0.19010704]
[1734982627751,0.0966,93277.0,93275.0,0.053676]
[1734982628151,0.002,93281.0,93280.0,0.053674]
[1734982628562,0.0966,93297.0,93291.0,0.053667]
[1734982628749,0.150264,93297.0,93295.0,0.053665]
[1734982628955,0.0966,93297.0,93295.0,0.053665]
[1734982629563,0.3608,93304.0,93293.0,0.3608]
[1734982629758,0.3608,93304.0,93303.0,0.053661]
[1734982629959,0.053656,93311.0,93293.0,0.3608]
[1734982630161,0.096,93316.0,93310.0,0.053656]
[1734982630461,0.096,93316.0,93315.0,0.053654]
[1734982631061,0.096,93316.0,93301.0,0.3608]
[1734982631255,0.053654,93314.0,93310.0,0.414456]
[1734982631456,0.096,93316.0,93301.0,0.3608]
[1734982631763,0.053657,93310.0,93309.0,0.053657]
[1734982632062,0.096,93316.0,93314.0,0.053654]
[1734982632262,0.105,93316.0,93315.0,0.001]
[1734982633156,0.009,93316.0,93315.0,0.001]
[1734982634364,0.004,93310.0,93309.0,0.3608]
[1734982634565,0.004,93310.0,93309.0,0.414457]
[1734982634865,0.0016,93317.0,93309.0,0.46836663]
[1734982635060,0.0016,93317.0,93316.0,0.053653]
[1734982636155,0.0016,93317.0,93310.0,0.053656]
[1734982636354,0.053655,93314.0,93313.0,0.053654]
[1734982636858,0.0036,93317.0,93309.0,0.41470963]
[1734982637063,0.053657,93312.0,93311.0,0.053656]
[1734982638061,0.0066,93317.0,93309.0,0.41470963]
[1734982638258,0.0036,93317.0,93316.0,0.053653]
[1734982638662,0.0016,93317.0,93316.0,0.053653]
[1734982639360,0.0046,93317.0,93316.0,0.053653]
[1734982639556,0.0056,93317.0,93316.0,0.053653]
[1734982640161,0.0046,93317.0,93316.0,0.053653]
[1734982640464,0.0056,93317.0,93316.0,0.053653]
[1734982641160,0.053657,93310.0,93309.0,0.05390963]
[1734982641465,0.3608,93314.0,93307.0,0.053658]
[1734982641760,0.0076,93317.0,93307.0,0.3608]
[1734982642062,0.0026,93317.0,93316.0,0.053653]
[1734982642755,0.0016,93317.0,93316.0,0.053653]
[1734982642954,0.0016,93317.0,93315.0,0.340453]
[1734982643658,0.001,93317.0,93315.0,0.340453]
[1734982643960,0.001,93317.0,93316.0,0.053653]
[1734982644167,0.0016,93332.0,93331.0,0.053644]
[1734982644752,0.28807142,93332.0,93331.0,0.053644]
[1734982645462,0.29707142,93332.0,93331.0,0.054644]
[1734982646058,0.0106,93332.0,93331.0,0.054644]
[1734982646258,0.0146,93332.0,93331.0,0.054644]
[1734982647867,0.0146,93332.0,93329.0,0.341444]
[1734982648362,0.21459164,93339.0,93338.0,0.05364]
[1734982648562,0.14280856,93339.0,93338.0,0.41444]
[1734982648758,0.13880856,93339.0,93338.0,0.41444]
[1734982649769,0.06477578,93339.0,93338.0,0.41444]
[1734982649968,0.6172604,93363.0,93353.0,0.053632]
[1734982650267,0.61782041,93363.0,93353.0,0.053632]
[1734982650868,0.053627,93362.0,93353.0,0.053632]
[1734982651263,0.3698,93354.0,93353.0,0.054632]
[1734982651473,0.009,93354.0,93353.0,0.054632]
[1734982651669,0.00160745,93368.0,93366.0,0.053624]
[1734982651965,0.00160745,93368.0,93366.0,0.414424]
[1734982652157,0.0975,93381.0,93379.0,0.053617]
[1734982652363,0.0975,93381.0,93379.0,0.414417]
[1734982652660,0.2564604,93388.0,93379.0,0.3608]
[1734982652866,0.2564604,93388.0,93379.0,0.340413]
[1734982653262,0.2564604,93388.0,93386.0,0.053613]
[1734982653667,0.2564604,93388.0,93387.0,0.3608]
[1734982653859,0.00160678,93406.0,93387.0,0.3608]
[1734982654066,0.05520778,93406.0,93397.0,0.414406]
[1734982654369,0.05520778,93406.0,93398.0,0.053606]
[1734982654568,0.053605,93399.0,93397.0,0.3608]
[1734982654757,0.053612,93387.0,93386.0,0.05459656]
[1734982654958,0.053612,93387.0,93386.0,0.001]
[1734982655561,0.053612,93387.0,93370.0,0.1355842]
[1734982655768,0.053612,93387.0,93380.0,0.053616]
[1734982656866,0.053612,93387.0,93382.0,0.053615]
[1734982657172,0.3608,93389.0,93386.0,0.054613]
[1734982657361,0.3608,93389.0,93386.0,0.001]
[1734982657560,0.3608,93389.0,93379.0,0.1355842]
[1734982658079,0.3608,93389.0,93379.0,0.0615842]
[1734982658273,0.3608,93389.0,93386.0,0.001]
[1734982658463,0.3608,93389.0,93388.0,0.053612]
[1734982660459,0.3608,93389.0,93388.0,0.107304]
[1734982660659,0.3608,93389.0,93388.0,0.054612]
[1734982661671,0.05416601,93398.0,93396.0,0.053607]
[1734982661974,0.053606,93398.0,93396.0,0.053607]
[1734982662376,0.00160678,93406.0,93388.0,0.001]
[1734982662571,0.053607,93396.0,93392.0,0.053609]
[1734982662776,0.053607,93396.0,93393.0,0.053609]
[1734982662976,0.053607,93396.0,93387.0,0.341409]
[1734982663273,0.3608,93404.0,93387.0,0.341409]
[1734982663274,0.053604,93402.0,93387.0,0.341409]
[1734982663670,0.3608,93404.0,93387.0,0.341409]
[1734982663671,0.053605,93399.0,93396.0,0.054607]
[1734982663877,0.053607,93397.0,93396.0,0.001]
[1734982664270,0.053607,93397.0,93387.0,0.38613275]
[1734982664271,0.053607,93397.0,93387.0,0.47736306]
[1734982664572,0.053607,93397.0,93393.0,0.053609]
[1734982664979,0.053607,93396.0,93393.0,0.053609]
[1734982665271,0.153605,93400.0,93397.0,0.053607]
[1734982665477,0.053606,93399.0,93397.0,0.053607]
[1734982666271,0.053606,93398.0,93397.0,0.053607]
[1734982667377,0.053608,93395.0,93394.0,0.053608]
[1734982668772,0.053612,93388.0,93387.0,0.04472375]
[1734982668977,0.3608,93395.0,93386.0,0.053613]
[1734982669177,0.053612,93387.0,93386.0,0.053613]
[1734982669477,0.053637,93345.0,93331.0,0.053644]
[1734982669668,0.48161565,93387.0,93323.0,0.0979]
[1734982669669,0.33936,93343.0,93323.0,0.0979]
[1734982669871,0.33936,93343.0,93326.0,0.19010704]
[1734982670076,0.414447,93327.0,93326.0,0.19010704]
[1734982670875,0.053655,93314.0,93297.0,0.053663]
[1734982671071,0.3608,93318.0,93300.0,0.3608]
[1734982671271,0.053656,93311.0,93302.0,0.04553818]
[1734982671478,0.053656,93311.0,93300.0,0.414462]
[1734982672179,0.053657,93310.0,93302.0,0.006]
[1734982672379,0.3608,93318.0,93303.0,0.05366]
[1734982672681,0.053657,93309.0,93303.0,0.05366]
[1734982673676,0.053658,93308.0,93303.0,0.009]
[1734982673881,0.053658,93309.0,93303.0,0.009]
[1734982674080,0.053658,93309.0,93300.0,0.05089368]
[1734982674282,0.053656,93311.0,93303.0,0.009]
[1734982674582,0.053657,93309.0,93303.0,0.015]
[1734982675077,0.053657,93309.0,93303.0,0.009]
[1734982676278,0.3608,93321.0,93308.0,0.3608]
[1734982676577,0.053643,93333.0,93322.0,0.053649]
[1734982676783,0.053647,93326.0,93317.0,0.3608]
[1734982676981,0.053647,93326.0,93316.0,0.053653]
[1734982677277,0.05365,93322.0,93309.0,0.053657]
[1734982677483,0.05365,93322.0,93308.0,0.3658]
[1734982678183,0.05365,93322.0,93316.0,0.003]
[1734982679582,0.414447,93328.0,93316.0,0.003]
[1734982679883,0.3608,93328.0,93317.0,0.053652]
[1734982680088,0.053647,93326.0,93318.0,0.053652]
[1734982680484,0.3608,93328.0,93326.0,0.053647]
[1734982680677,0.3608,93328.0,93317.0,0.3608]
[1734982680979,0.053651,93320.0,93317.0,0.3608]
[1734982681180,0.053651,93320.0,93318.0,0.001]
[1734982681786,0.053651,93320.0,93317.0,0.3658]
[1734982682283,0.414452,93318.0,93316.0,0.001]
[1734982682678,0.053657,93310.0,93298.0,0.3608]
[1734982682884,0.3608,93310.0,93296.0,0.053664]
[1734982683082,0.053661,93303.0,93296.0,0.04480101]
[1734982683389,0.053661,93302.0,93297.0,0.053664]
[1734982684187,0.053662,93301.0,93290.0,0.13560125]
[1734982684385,0.3608,93310.0,93296.0,0.002]
[1734982684587,0.053664,93298.0,93297.0,0.001]
[1734982685590,0.053664,93298.0,93296.0,0.004]
[1734982685790,0.053664,93298.0,93296.0,0.002]
[1734982685988,0.053664,93298.0,93297.0,0.001]
[1734982686387,0.053664,93298.0,93296.0,0.002]
[1734982687286,0.053664,93298.0,93297.0,0.001]
[1734982687478,0.053665,93295.0,93275.0,0.053677]
[1734982687794,0.05368,93270.0,93269.0,0.05368]
[1734982688100,0.3608,93281.0,93260.0,0.13560125]
[1734982688393,0.053681,93268.0,93266.0,0.053682]
[1734982688594,0.053677,93275.0,93273.0,0.053677]
[1734982689591,0.3608,93281.0,93280.0,0.053674]
[1734982689795,0.36144,93288.0,93286.0,0.05367]
[1734982689991,0.3608,93300.0,93299.0,0.053663]
[1734982690191,0.3608,93300.0,93282.0,0.3608]
[1734982690192,0.3608,93302.0,93290.0,0.13560125]
[1734982690391,0.053663,93298.0,93296.0,0.053664]
[1734982690599,0.3608,93302.0,93299.0,0.053662]
[1734982690791,0.053663,93299.0,93283.0,0.053672]
[1734982691094,0.3608,93302.0,93286.0,0.009]
[1734982691396,0.053665,93296.0,93291.0,0.053667]
[1734982691796,0.3608,93294.0,93293.0,0.053666]
[1734982692495,0.053662,93300.0,93299.0,0.001]
[1734982693198,0.1043,93304.0,93293.0,0.002]
[1734982693396,0.053664,93298.0,93293.0,0.055666]
[1734982693990,0.053661,93303.0,93299.0,0.001]
[1734982694189,0.1043,93304.0,93299.0,0.001]
[1734982694190,0.053662,93300.0,93299.0,0.001]
[1734982695400,0.053662,93300.0,93298.0,0.053663]
[1734982696097,0.053662,93300.0,93298.0,0.09167451]
[1734982696392,0.053662,93300.0,93299.0,0.001]
[1734982697095,0.053662,93300.0,93298.0,0.03901151]
[1734982697291,0.053662,93300.0,93298.0,0.04001151]
[1734982697698,0.053662,93300.0,93298.0,0.09267451]
[1734982698401,0.053662,93300.0,93298.0,0.09367451]
[1734982698692,0.053662,93300.0,93298.0,0.09267451]
[1734982699003,0.053662,93300.0,93299.0,0.001]
[1734982699498,0.053662,93300.0,93298.0,0.09367451]
[1734982700401,0.053662,93300.0,93299.0,0.001]
[1734982701791,0.053663,93299.0,93298.0,0.09367451]
[1734982702101,0.157962,93304.0,93303.0,0.053661]
[1734982703698,0.158962,93304.0,93303.0,0.053661]
[1734982705190,0.053663,93299.0,93298.0,0.03801151]
[1734982705409,0.053671,93287.0,93275.0,0.36064]
[1734982705591,0.053676,93281.0,93280.0,0.053674]
[1734982706101,0.053678,93274.0,93273.0,0.053678]
[1734982707600,0.053678,93274.0,93273.0,0.062678]
[1734982707800,0.053678,93274.0,93273.0,0.009]
[1734982708605,0.05369,93256.0,93255.0,0.053688]
[1734982708807,0.053691,93251.0,93250.0,0.053691]
[1734982709198,0.3608,93257.0,93240.0,0.09042534]
[1734982709199,0.053689,93255.0,93245.0,0.053694]
[1734982709493,0.3608,93249.0,93233.0,0.3608]
[1734982709698,0.053698,93240.0,93239.0,0.053697]
[1734982709895,0.3608,93241.0,93233.0,0.3608]
[1734982710099,0.053699,93236.0,93234.0,0.0537]
[1734982710297,0.053698,93238.0,93230.0,0.09042534]
[1734982710497,0.3608,93241.0,93231.0,0.053702]
[1734982710703,0.3608,93241.0,93240.0,0.053697]
[1734982710905,0.1005,93256.0,93255.0,0.053688]
[1734982712006,0.1005,93256.0,93255.0,0.055688]
[1734982712401,0.1005,93256.0,93255.0,0.056688]
[1734982713406,0.053684,93263.0,93255.0,0.003]
[1734982713615,0.053684,93263.0,93261.0,0.053685]
[1734982714103,0.053686,93259.0,93255.0,0.09500448]
[1734982714409,0.053686,93259.0,93256.0,0.053688]
[1734982714615,0.053686,93259.0,93255.0,0.04131648]
[1734982714808,0.053686,93259.0,93257.0,0.053687]
[1734982715596,0.001,93263.0,93262.0,0.053684]
[1734982716703,0.15608,93270.0,93267.0,0.053681]
[1734982716905,0.3608,93268.0,93255.0,0.04131648]
[1734982717104,0.053686,93260.0,93259.0,0.053686]
[1734982718303,0.002,93263.0,93255.0,0.03831648]
[1734982718507,0.002,93263.0,93252.0,0.05369]
[1734982718707,0.002,93263.0,93259.0,0.001]
[1734982719916,0.05368,93269.0,93265.0,0.053682]
[1734982720221,0.05368,93269.0,93259.0,0.09142534]
[1734982720401,0.3608,93260.0,93259.0,0.001]
[1734982720603,0.3608,93260.0,93230.0,0.09042534]
[1734982720801,0.3608,93241.0,93225.0,0.053705]
[1734982721019,0.3608,93233.0,93227.0,0.053704]
[1734982721310,0.053704,93228.0,93227.0,0.053704]
[1734982723309,0.053704,93228.0,93227.0,0.056704]
[1734982723508,0.053704,93228.0,93227.0,0.060704]
[1734982724718,0.3608,93252.0,93227.0,0.060704]
[1734982724719,0.3608,93263.0,93227.0,0.3678]
[1734982724910,0.3608,93263.0,93250.0,0.09042534]
[1734982725213,0.3608,93263.0,93256.0,0.053686]
[1734982725405,0.3608,93263.0,93250.0,0.09042534]
[1734982725621,0.053681,93265.0,93250.0,0.09042534]
[1734982725808,0.05368,93268.0,93250.0,0.14411434]
[1734982726013,0.05368,93267.0,93250.0,0.09042534]
[1734982726215,0.00160896,93271.0,93250.0,0.09042534]
[1734982726414,0.053682,93264.0,93260.0,0.053684]
[1734982726623,0.061683,93263.0,93260.0,0.053684]
[1734982726831,0.061683,93263.0,93262.0,0.053683]
[1734982727011,0.055683,93263.0,93262.0,0.053683]
[1734982727319,0.053683,93263.0,93262.0,0.053683]
[1734982727517,0.053681,93266.0,93254.0,0.3608]
[1734982727816,0.053681,93266.0,93265.0,0.053681]
[1734982728018,0.053681,93266.0,93254.0,0.339481]
[1734982728514,0.001,93263.0,93262.0,0.053683]
[1734982729826,0.054681,93266.0,93263.0,0.053682]
[1734982730018,0.058681,93266.0,93263.0,0.053682]
[1734982730507,0.057681,93266.0,93263.0,0.053682]
[1734982730912,0.053681,93266.0,93264.0,0.053681]
[1734982731217,0.053681,93265.0,93264.0,0.053681]
[1734982731518,0.053681,93265.0,93262.0,0.001]
[1734982731519,0.053679,93270.0,93267.0,0.05368]
[1734982732024,0.053679,93268.0,93267.0,0.05368]
[1734982732617,0.00160896,93271.0,93270.0,0.053678]
[1734982732818,0.05528696,93271.0,93270.0,0.053678]
[1734982734011,0.00160896,93271.0,93270.0,0.053678]
[1734982734215,0.00160896,93271.0,93270.0,0.414478]
[1734982734919,0.00460896,93271.0,93270.0,0.414478]
[1734982735109,0.003,93271.0,93270.0,0.414478]
[1734982735516,0.2564604,93278.0,93277.0,0.053674]
[1734982736324,0.2564604,93281.0,93277.0,0.053674]
[1734982736523,0.3101324,93281.0,93270.0,0.3608]
[1734982736726,0.3101324,93281.0,93279.0,0.053673]
[1734982737923,0.2564604,93281.0,93279.0,0.053673]
[1734982738122,0.2654604,93281.0,93279.0,0.054673]
[1734982738825,0.2654604,93281.0,93279.0,0.415473]
[1734982739621,0.2654604,93281.0,93280.0,0.053672]
[1734982740022,0.009,93281.0,93280.0,0.053672]
[1734982740422,1e-08,93281.0,93280.0,0.053672]
[1734982740634,0.28643143,93285.0,93284.0,0.05367]
[1734982740818,0.053672,93280.0,93279.0,0.03410301]
[1734982741017,0.414472,93280.0,93279.0,0.03310301]
[1734982741214,0.3608,93280.0,93261.0,0.3608]
[1734982741429,0.3608,93280.0,93271.0,0.053677]
[1734982741616,0.053677,93272.0,93271.0,0.053677]
[1734982742022,0.3608,93280.0,93261.0,0.3608]
[1734982742224,0.05368,93267.0,93266.0,0.05368]
[1734982743122,0.0955,93270.0,93250.0,0.13573692]
[1734982743328,0.0955,93270.0,93261.0,0.002]
[1734982743627,0.053683,93262.0,93261.0,0.055683]
[1734982743925,0.053683,93262.0,93261.0,0.053683]
[1734982745625,0.053683,93262.0,93261.0,0.054683]
[1734982745825,0.053683,93262.0,93261.0,0.001]
[1734982746225,0.053683,93262.0,93255.0,0.053687]
[1734982746426,0.053683,93262.0,93261.0,0.001]
[1734982747320,0.053683,93262.0,93257.0,0.053685]
[1734982748137,0.2565953,93269.0,93257.0,0.053685]
[1734982748433,0.053684,93260.0,93257.0,0.053685]
[1734982749033,0.053686,93256.0,93255.0,0.002]
[1734982749527,0.053686,93256.0,93255.0,0.055687]
[1734982749926,0.053686,93256.0,93255.0,0.053687]
[1734982750426,0.22457777,93260.0,93251.0,0.3608]
[1734982750626,0.053688,93254.0,93251.0,0.3608]
[1734982750823,0.053689,93252.0,93251.0,0.3608]
[1734982751824,0.22457777,93260.0,93250.0,0.03249319]
[1734982752030,0.22457777,93260.0,93248.0,0.053691]
[1734982752332,0.053693,93245.0,93242.0,0.414534]
[1734982752631,0.22457777,93260.0,93242.0,0.414534]
[1734982752632,0.1934,93259.0,93251.0,0.001]
[1734982753136,0.1934,93259.0,93251.0,0.003]
[1734982753430,0.1934,93259.0,93251.0,0.002]
[1734982753619,0.053688,93253.0,93251.0,0.053689]
[1734982753825,0.053689,93252.0,93251.0,0.055689]
[1734982754223,0.053689,93252.0,93251.0,0.053689]
[1734982754420,0.0953,93259.0,93251.0,0.001]
[1734982754626,0.053686,93257.0,93256.0,0.053686]
[1734982755233,0.053688,93254.0,93251.0,0.3618]
[1734982755530,0.053688,93253.0,93251.0,0.3628]
[1734982755736,0.053688,93253.0,93251.0,0.416489]
[1734982756231,0.053688,93253.0,93252.0,0.053689]
[1734982758125,0.053689,93252.0,93251.0,0.001]
[1734982759227,0.053687,93254.0,93252.0,0.001]
[1734982759447,0.053688,93253.0,93252.0,0.001]
[1734982759825,0.22509857,93255.0,93248.0,0.053691]
[1734982760022,0.22509857,93255.0,93251.0,0.001]
[1734982760237,0.053689,93252.0,93251.0,0.001]
[1734982760536,0.053689,93252.0,93251.0,0.054689]
[1734982760834,0.053689,93252.0,93251.0,0.053689]
[1734982761233,0.002,93254.0,93243.0,0.3931108]
[1734982761434,0.053691,93248.0,93247.0,0.053691]
[1734982761734,0.053693,93244.0,93243.0,0.3931108]
[1734982763125,0.053693,93244.0,93243.0,0.3941108]
[1734982763331,0.053693,93244.0,93243.0,0.3961108]
[1734982764738,0.053693,93244.0,93243.0,0.0353108]
[1734982773930,0.3608,93245.0,93218.0,0.3608]
[1734982774133,0.053706,93224.0,93223.0,0.053705]
[1734982775541,0.054706,93224.0,93223.0,0.062705]
[1734982775843,0.054706,93224.0,93223.0,0.067705]
[1734982778429,0.001,93224.0,93223.0,0.067705]
[1734982780840,0.001,93224.0,93223.0,0.014]
[1734982781048,0.053712,93211.0,93201.0,0.3608]
[1734982781235,0.053716,93206.0,93201.0,0.3608]
[1734982781736,0.053716,93206.0,93200.0,0.1]
[1734982782136,0.05371,93215.0,93200.0,0.1]
[1734982782345,0.053716,93206.0,93201.0,0.008]
[1734982782539,0.001,93206.0,93205.0,0.053716]
[1734982782737,0.053704,93225.0,93222.0,0.053705]
[1734982782937,0.053699,93235.0,93215.0,0.053709]
[1734982783133,0.053699,93235.0,93210.0,0.0904863]
[1734982783134,0.3608,93228.0,93210.0,0.0904863]
[1734982783337,0.3608,93228.0,93202.0,0.3608]
[1734982783338,0.001,93206.0,93205.0,0.053715]
[1734982784842,0.0945,93226.0,93202.0,0.3608]
[1734982785048,0.053705,93223.0,93222.0,0.006]
[1734982785448,0.053713,93210.0,93207.0,0.053714]
[1734982785748,0.053713,93209.0,93207.0,0.053714]
[1734982785943,0.3608,93212.0,93205.0,0.015]
[1734982786138,0.053715,93206.0,93203.0,0.053717]
[1734982787845,0.053715,93206.0,93205.0,0.006]
[1734982788435,0.053718,93201.0,93200.0,0.1278491]
[1734982790240,0.0946,93205.0,93200.0,0.1278491]
[1734982790442,0.0946,93205.0,93204.0,0.053716]
[1734982791759,0.0956,93205.0,93204.0,0.053716]
[1734982791953,0.001,93205.0,93204.0,0.053716]
[1734982792145,0.3608,93212.0,93204.0,0.053716]
[1734982792452,0.003,93205.0,93204.0,0.053716]
[1734982794353,0.053716,93206.0,93204.0,0.053716]
[1734982794657,0.053716,93206.0,93204.0,0.056716]
[1734982795343,0.001,93205.0,93204.0,0.053716]
[1734982797855,0.22501442,93211.0,93210.0,0.053713]
[1734982798747,0.22501442,93216.0,93209.0,0.3608]
[1734982798955,0.22501442,93216.0,93213.0,0.053711]
[1734982799650,0.27872342,93217.0,93213.0,0.053711]
[1734982800749,0.27872342,93217.0,93209.0,0.3608]
[1734982800944,0.27872342,93217.0,93214.0,0.05371]
[1734982801252,0.053711,93213.0,93211.0,0.053712]
[1734982801450,0.053711,93213.0,93212.0,0.053712]
[1734982802550,0.055711,93213.0,93212.0,0.053712]